fUST/lending_fUST_20251113
["ID","MTS","AMOUNT","RATE_DAILY","PERIOD"]
[393861538,1763045516755,-500.0,0.00044657,120]
[393861539,1763045516765,-500.0,0.00044657,120]
[393861540,1763045516776,-500.0,0.00044657,120]
[393861541,1763045516787,-500.0,0.00044657,120]
[393861542,1763045516798,-633.9,0.00044657,120]
[393861543,1763045516808,-513.27493334,0.00044657,120]
[393861544,1763045516818,-500.0,0.00044657,120]
[393861545,1763045516829,-519.29,0.00044657,2]
[393861546,1763045516839,-500.0,0.00044657,120]
[393861547,1763045516861,-500.0,0.00044657,120]
[393861548,1763045516873,-500.0,0.00044657,120]
[393861549,1763045516888,-500.0,0.00044657,120]
[393861550,1763045516901,-500.0,0.00044657,120]
[393861551,1763045516912,-780.21,0.00044657,120]
[393861552,1763045516923,-11245.95,0.00044657,3]
[393861553,1763045516934,-500.0,0.00044657,120]
[393861554,1763045516946,-640.4,0.00044657,120]
[393861555,1763045516957,-500.0,0.00044657,120]
[393861556,1763045516968,-500.0,0.00044657,120]
[393861557,1763045516979,-500.0,0.00044657,120]
[393861558,1763045516991,-500.0,0.00044657,120]
[393861559,1763045517003,-500.0,0.00044657,120]
[393861560,1763045517015,-500.0,0.00044657,120]
[393861561,1763045517027,-500.0,0.00044657,120]
[393861562,1763045517038,-500.0,0.00044657,120]
[393861563,1763045517050,-500.0,0.00044657,120]
[393861564,1763045517061,-685.45,0.00044657,120]
[393861565,1763045517073,-500.0,0.00044657,120]
[393861566,1763045517083,-500.0,0.00044657,120]
[393861567,1763045517099,-500.0,0.00044657,120]
[393861568,1763045517116,-500.0,0.00044657,3]
[393861569,1763045517127,-500.0,0.00044657,120]
[393861570,1763045517138,-500.0,0.00044657,120]
[393861571,1763045517149,-500.0,0.00044657,120]
[393861572,1763045517160,-500.0,0.00044657,120]
[393861573,1763045517171,-500.0,0.00044657,30]
[393861574,1763045517182,-500.0,0.00044657,120]
[393861575,1763045517192,-598.06,0.00044657,120]
[393861576,1763045517202,-567.12,0.00044657,120]
[393861577,1763045517213,-779.28,0.00044657,120]
[393861578,1763045517223,-500.0,0.00044657,120]
[393861579,1763045517233,-500.0,0.00044657,120]
[393861580,1763045517244,-500.0,0.00044657,120]
[393861581,1763045517259,-500.0,0.00044657,120]
[393861582,1763045517269,-850.14,0.00044657,120]
[393861583,1763045517279,-793.5,0.00044657,120]
[393861584,1763045517291,-500.0,0.00044657,120]
[393861585,1763045517301,-566.87,0.00044657,120]
[393861586,1763045517311,-500.0,0.00044657,120]
[393861587,1763045517321,-500.0,0.00044657,120]
[393861588,1763045517332,-500.0,0.00044657,120]
[393861589,1763045517341,-500.0,0.00044657,21]
[393861590,1763045517359,-631.85,0.00044657,120]
[393861591,1763045517368,-233.57129123,0.00044657,120]
[393861592,1763045517378,-782.59,0.00044657,120]
[393861593,1763045517389,-826.01,0.00044657,120]
[393861594,1763045517399,-555.43,0.00044657,120]
[393861595,1763045517408,-500.0,0.00044657,120]
[393861596,1763045517418,-721.96,0.00044657,120]
[393861597,1763045517428,-500.0,0.00044657,120]
[393861598,1763045517438,-500.0,0.00044657,120]
[393861599,1763045517447,-500.0,0.00044657,120]
[393861600,1763045517458,-500.0,0.00044657,120]
[393861601,1763045517467,-500.0,0.00044657,120]
[393861602,1763045517477,-500.0,0.00044657,120]
[393861603,1763045517486,-500.0,0.00044657,120]
[393861604,1763045517496,-500.0,0.00044657,120]
[393861605,1763045517505,-500.0,0.00044657,120]
[393861606,1763045517515,-500.0,0.00044657,120]
[393861607,1763045517525,-500.0,0.00044657,120]
[393861608,1763045517534,-500.0,0.00044657,120]
[393861609,1763045517544,-913.41,0.00044657,120]
[393861610,1763045517553,-579.47,0.00044657,120]
[393861611,1763045517563,-500.0,0.00044657,120]
[393861612,1763045517573,-500.0,0.00044657,120]
[393861613,1763045517583,-500.0,0.00044657,120]
[393861614,1763045517593,-500.0,0.00044657,120]
[393861615,1763045517610,-500.0,0.00044657,120]
[393861616,1763045517765,-684.28,0.00044657,120]
[393861617,1763045517777,-500.0,0.00044657,120]
[393861618,1763045517790,-500.0,0.00044657,120]
[393861619,1763045517801,-500.0,0.00044657,120]
[393861620,1763045517813,-624.24,0.00044657,2]
[393861621,1763045517824,-1000.0,0.00044657,7]
[393861622,1763045517836,-500.0,0.00044657,120]
[393861623,1763045517851,-770.91,0.00044657,120]
[393861624,1763045517868,-500.0,0.00044657,120]
[393861625,1763045517880,-393.53704089,0.00044657,120]
[393861626,1763045517890,-3457.67,0.00044657,120]
[393861627,1763045517900,-500.0,0.00044657,120]
[393861628,1763045517911,-500.0,0.00044657,120]
[393861629,1763045517921,-1457.38,0.00044657,120]
[393861630,1763045517931,-797.92,0.00044657,120]
[393861631,1763045517941,-500.0,0.00044657,120]
[393861632,1763045517950,-500.0,0.00044657,120]
[393861633,1763045517961,-500.0,0.00044657,120]
[393861634,1763045517972,-630.0,0.00044657,120]
[393861635,1763045517982,-500.0,0.00044657,120]
[393861636,1763045517991,-500.0,0.00044657,120]
[393861637,1763045518000,-500.0,0.00044657,120]
[393861638,1763045518010,-500.0,0.00044657,120]
[393861639,1763045518020,-500.0,0.00044657,120]
[393861640,1763045518031,-500.0,0.00044657,120]
[393861641,1763045518042,-500.0,0.00044657,120]
[393861642,1763045518053,-1748.23,0.00044657,120]
[393861643,1763045518063,-500.0,0.00044657,120]
[393861644,1763045518072,-500.0,0.00044657,120]
[393861645,1763045518082,-871.35,0.00044657,120]
[393861646,1763045518091,-500.0,0.00044657,120]
[393861647,1763045518106,-854.46,0.00044657,120]
[393861648,1763045518116,-500.0,0.00044657,120]
[393861649,1763045518127,-500.0,0.00044657,120]
[393861650,1763045518138,-591.42,0.00044657,120]
[393861651,1763045518148,-614.87,0.00044657,120]
[393861652,1763045518159,-500.0,0.00044657,120]
[393861653,1763045518169,-500.0,0.00044657,120]
[393861654,1763045518180,-500.0,0.00044657,120]
[393861655,1763045518189,-500.0,0.00044657,120]
[393861656,1763045518200,-500.0,0.00044657,120]
[393861657,1763045518211,-817.21,0.00044657,120]
[393861658,1763045518221,-500.0,0.00044657,120]
[393861659,1763045518231,-513.63141092,0.00044657,120]
[393861660,1763045518242,-500.0,0.00044657,120]
[393861661,1763045518254,-151.0,0.00044657,120]
[393861662,1763045518264,-500.0,0.00044657,120]
[393861663,1763045518275,-151.0,0.00044657,120]
[393861664,1763045518285,-699.0,0.00044657,120]
[393861665,1763045518296,-500.0,0.00044657,120]
[393861666,1763045518306,-585.98,0.00044657,120]
[393861667,1763045518315,-500.0,0.00044657,120]
[393861668,1763045518325,-183.0,0.00044663,2]
[393861669,1763045518335,-160.53,0.000447,14]
[393861670,1763045518346,-559.0,0.00044711,90]
[393861671,1763045518365,-300.0,0.00044711,90]
[393861672,1763045518375,-300.0,0.00044711,90]
[393861673,1763045518385,-300.0,0.00044711,90]
[393861674,1763045518395,-301.80565547,0.00044721,7]
[393861675,1763045518406,-1000.0,0.00044721,7]
[393861676,1763045518416,-6496.37406414,0.00044831,2]
[393861677,1763045518425,-49065.0,0.000449,30]
[393861678,1763045518435,-571.44,0.00044931,120]
[393861679,1763045518445,-500.0,0.00044931,120]
[393861680,1763045518454,-500.0,0.00044931,120]
[393861681,1763045518464,-544.73,0.00044931,120]
[393861682,1763045518473,-500.0,0.00044931,120]
[393861683,1763045518483,-500.0,0.00044931,120]
[393861684,1763045518492,-500.0,0.00044931,120]
[393861685,1763045518502,-500.0,0.00044931,120]
[393861686,1763045518511,-500.0,0.00044931,120]
[393861687,1763045518521,-1000.0,0.00044931,2]
[393861688,1763045518530,-596.86978969,0.00044931,120]
[393861689,1763045518540,-608.84,0.00044931,120]
[393861690,1763045518549,-500.0,0.00044931,120]
[393861691,1763045518558,-500.0,0.00044931,120]
[393861692,1763045518569,-500.0,0.00044931,120]
[393861693,1763045518578,-500.0,0.00044931,120]
[393861694,1763045518588,-500.0,0.00044931,120]
[393861695,1763045518602,-210.4235863,0.00044931,120]
[393861696,1763045518612,-565.99,0.00044931,120]
[393861697,1763045518623,-252.18137341,0.00044931,120]
[393861698,1763045518633,-406.6750432,0.00044931,120]
[393861699,1763045518643,-500.0,0.00044931,120]
[393861700,1763045518652,-500.0,0.00044931,120]
[393861701,1763045518662,-500.0,0.00044931,120]
[393861702,1763045518672,-500.0,0.00044931,120]
[393861703,1763045518681,-500.0,0.00044931,120]
[393861704,1763045518690,-500.0,0.00044931,120]
[393861705,1763045518699,-500.0,0.00044931,120]
[393861706,1763045518708,-200.0,0.00044931,120]
[393861707,1763045518717,-500.0,0.00044931,120]
[393861708,1763045518727,-500.0,0.00044931,120]
[393861709,1763045518736,-500.0,0.00044931,120]
[393861710,1763045518745,-1000.0,0.00044931,120]
[393861711,1763045518754,-500.0,0.00044931,120]
[393861712,1763045518764,-500.0,0.00044931,120]
[393861713,1763045518773,-500.0,0.00044931,120]
[393861714,1763045518783,-732.35,0.00044931,120]
[393861715,1763045518793,-160.03473,0.00044931,120]
[393861716,1763045518802,-500.0,0.00044931,120]
[393861717,1763045518813,-500.0,0.00044931,120]
[393861718,1763045518823,-500.0,0.00044931,120]
[393861719,1763045518832,-500.0,0.00044931,120]
[393861720,1763045518843,-570.02,0.00044931,120]
[393861721,1763045518859,-502.75,0.00044931,120]
[393861722,1763045518869,-500.0,0.00044931,120]
[393861723,1763045518879,-152.899214,0.00044931,90]
[393861724,1763045518890,-500.0,0.00044931,120]
[393861725,1763045518900,-500.0,0.00044931,120]
[393861726,1763045518909,-500.0,0.00044931,120]
[393861727,1763045518921,-585.51,0.00044931,120]
[393861728,1763045518931,-500.0,0.00044931,120]
[393861729,1763045518941,-500.0,0.00044931,120]
[393861730,1763045518951,-500.0,0.00044931,120]
[393861731,1763045518961,-1000.0,0.00044931,2]
[393861732,1763045518971,-500.0,0.00044931,120]
[393861733,1763045518980,-500.0,0.00044931,120]
[393861734,1763045518990,-500.0,0.00044931,120]
[393861735,1763045518999,-500.0,0.00044931,120]
[393861736,1763045519008,-500.0,0.00044931,120]
[393861737,1763045519017,-500.0,0.00044931,120]
[393861738,1763045519027,-500.0,0.00044931,120]
[393861739,1763045519037,-500.0,0.00044931,120]
[393861740,1763045519047,-514.82,0.00044931,120]
[393861741,1763045519057,-257.04814644,0.00044931,120]
[393861742,1763045519065,-500.0,0.00044931,120]
[393861743,1763045519075,-500.0,0.00044931,120]
[393861744,1763045519085,-500.0,0.00044931,120]
[393861745,1763045519095,-500.0,0.00044931,120]
[393861746,1763045519114,-500.0,0.00044931,120]
[393861747,1763045519125,-577.09,0.00044931,120]
[393861748,1763045519135,-555.62720779,0.00044931,120]
[393861749,1763045519146,-834.01,0.00044931,120]
[393861750,1763045519158,-500.0,0.00044931,120]
[393861751,1763045519168,-969.65,0.00044931,120]
[393861752,1763045519178,-1066.87,0.00044931,7]
[393861753,1763045519189,-1264.73,0.00044931,30]
[393861754,1763045519200,-500.0,0.00044931,120]
[393861755,1763045519211,-787.85,0.00044931,120]
[393861756,1763045519223,-552.73,0.00044931,120]
[393861757,1763045519234,-2599.22,0.00044931,2]
[393861758,1763045519247,-500.0,0.00044931,120]
[393861759,1763045519262,-500.0,0.00044931,120]
[393861760,1763045519273,-259.63342201,0.00044931,120]
[393861761,1763045519283,-736.82,0.00044931,120]
[393861762,1763045519296,-500.0,0.00044931,120]
[393861763,1763045519308,-512.47,0.00044931,120]
[393861764,1763045519319,-500.0,0.00044931,120]
[393861765,1763045519332,-500.0,0.00044931,120]
[393861766,1763045519346,-534.45,0.00044931,120]
[393861767,1763045519369,-500.0,0.00044931,120]
[393861768,1763045519380,-500.0,0.00044931,120]
[393861769,1763045519390,-500.0,0.00044931,120]
[393861770,1763045519400,-500.0,0.00044931,120]
[393861771,1763045519410,-500.0,0.00044931,120]
[393861772,1763045519420,-500.0,0.00044931,120]
[393861773,1763045519430,-539.92,0.00044931,120]
[393861774,1763045519440,-500.0,0.00044931,120]
[393861775,1763045519450,-500.0,0.00044931,2]
[393861776,1763045519459,-500.0,0.00044931,120]
[393861777,1763045519469,-500.0,0.00044931,120]
[393861778,1763045519479,-500.0,0.00044931,120]
[393861779,1763045519488,-500.0,0.00044931,120]
[393861780,1763045519497,-558.63,0.00044931,120]
[393861781,1763045519507,-500.0,0.00044931,120]
[393861782,1763045519516,-257.275672,0.00044931,120]
[393861783,1763045519526,-257.275672,0.00044931,120]
[393861784,1763045519536,-500.0,0.00044931,120]
[393861785,1763045519546,-257.275672,0.00044931,120]
[393861786,1763045519556,-500.0,0.00044931,120]
[393861787,1763045519566,-257.275672,0.00044931,120]
[393861788,1763045519576,-500.0,0.00044931,120]
[393861789,1763045519585,-500.0,0.00044931,120]
[393861790,1763045519594,-500.0,0.00044931,120]
[393861791,1763045519610,-500.0,0.00044931,120]
[393861792,1763045519620,-229.68008341,0.00044931,120]
[393861793,1763045519630,-500.0,0.00044931,120]
[393861794,1763045519640,-500.0,0.00044931,120]
[393861795,1763045519651,-500.0,0.00044931,120]
[393861796,1763045519661,-633.9,0.00044931,120]
[393861797,1763045519670,-500.0,0.00044931,120]
[393861798,1763045519681,-519.29,0.00044931,2]
[393861799,1763045519694,-500.0,0.00044931,120]
[393861800,1763045519704,-500.0,0.00044931,120]
[393861801,1763045519715,-500.0,0.00044931,120]
[393861802,1763045519724,-500.0,0.00044931,120]
[393861803,1763045519733,-500.0,0.00044931,120]
[393861804,1763045519742,-780.21,0.00044931,120]
[393861805,1763045519752,-11245.95,0.00044931,3]
[393861806,1763045519762,-500.0,0.00044931,120]
[393861807,1763045519772,-640.4,0.00044931,120]
[393861808,1763045519782,-500.0,0.00044931,120]
[393861809,1763045519792,-500.0,0.00044931,120]
[393861810,1763045519802,-500.0,0.00044931,120]
[393861811,1763045519812,-500.0,0.00044931,120]
[393861812,1763045519822,-500.0,0.00044931,120]
[393861813,1763045519833,-500.0,0.00044931,120]
[393861814,1763045519844,-500.0,0.00044931,120]
[393861815,1763045519862,-500.0,0.00044931,120]
[393861816,1763045519873,-685.45,0.00044931,120]
[393861817,1763045519884,-500.0,0.00044931,120]
[393861818,1763045519894,-500.0,0.00044931,120]
[393861819,1763045519904,-500.0,0.00044931,120]
[393861820,1763045519917,-500.0,0.00044931,3]
[393861821,1763045519927,-500.0,0.00044931,120]
[393861822,1763045519938,-151.0,0.00044931,7]
[393861823,1763045519948,-500.0,0.00044931,120]
[393861824,1763045519958,-500.0,0.00044931,120]
[393861825,1763045519968,-500.0,0.00044931,120]
[393861826,1763045519979,-500.0,0.00044931,30]
[393861827,1763045519989,-500.0,0.00044931,120]
[393861828,1763045519998,-598.06,0.00044931,120]
[393861829,1763045520008,-567.12,0.00044931,120]
[393861830,1763045520018,-779.28,0.00044931,120]
[393861831,1763045520029,-500.0,0.00044931,120]
[393861832,1763045520203,-500.0,0.00044931,120]
[393861833,1763045520214,-500.0,0.00044931,120]
[393861834,1763045520225,-500.0,0.00044931,120]
[393861835,1763045520235,-850.14,0.00044931,120]
[393861836,1763045520248,-793.5,0.00044931,120]
[393861837,1763045520259,-500.0,0.00044931,120]
[393861838,1763045520270,-566.87,0.00044931,120]
[393861839,1763045520283,-500.0,0.00044931,120]
[393861840,1763045520294,-500.0,0.00044931,120]
[393861841,1763045520304,-500.0,0.00044931,120]
[393861842,1763045520314,-500.0,0.00044931,21]
[393861843,1763045520324,-631.85,0.00044931,120]
[393861844,1763045520333,-782.59,0.00044931,120]
[393861845,1763045520343,-826.01,0.00044931,120]
[393861846,1763045520359,-555.43,0.00044931,120]
[393861847,1763045520369,-500.0,0.00044931,120]
[393861848,1763045520379,-721.96,0.00044931,120]
[393861849,1763045520389,-500.0,0.00044931,120]
[393861850,1763045520399,-500.0,0.00044931,120]
[393861851,1763045520409,-500.0,0.00044931,120]
[393861852,1763045520419,-151.0,0.00044931,30]
[393861853,1763045520429,-500.0,0.00044931,120]
[393861854,1763045520440,-500.0,0.00044931,120]
[393861855,1763045520451,-500.0,0.00044931,120]
[393861856,1763045520462,-500.0,0.00044931,120]
[393861857,1763045520472,-500.0,0.00044931,120]
[393861858,1763045520482,-500.0,0.00044931,120]
[393861859,1763045520492,-500.0,0.00044931,120]
[393861860,1763045520502,-500.0,0.00044931,120]
[393861861,1763045520511,-500.0,0.00044931,120]
[393861862,1763045520521,-913.41,0.00044931,120]
[393861863,1763045520531,-579.47,0.00044931,120]
[393861864,1763045520541,-500.0,0.00044931,120]
[393861865,1763045520551,-500.0,0.00044931,120]
[393861866,1763045520561,-500.0,0.00044931,120]
[393861867,1763045520571,-500.0,0.00044931,120]
[393861868,1763045520582,-500.0,0.00044931,120]
[393861869,1763045520591,-684.28,0.00044931,120]
[393861870,1763045520606,-500.0,0.00044931,120]
[393861871,1763045520616,-500.0,0.00044931,120]
[393861872,1763045520626,-500.0,0.00044931,120]
[393861873,1763045520636,-624.24,0.00044931,2]
[393861874,1763045520646,-1000.0,0.00044931,7]
[393861875,1763045520656,-500.0,0.00044931,120]
[393861876,1763045520666,-770.91,0.00044931,120]
[393861877,1763045520675,-500.0,0.00044931,120]
[393861878,1763045520685,-3457.67,0.00044931,120]
[393861879,1763045520695,-500.0,0.00044931,120]
[393861880,1763045520705,-500.0,0.00044931,120]
[393861881,1763045520714,-1457.38,0.00044931,120]
[393861882,1763045520723,-715.274392,0.00044931,120]
[393861883,1763045520734,-797.92,0.00044931,120]
[393861884,1763045520744,-500.0,0.00044931,120]
[393861885,1763045520755,-715.274392,0.00044931,120]
[393861886,1763045520765,-500.0,0.00044931,120]
[393861887,1763045520775,-500.0,0.00044931,120]
[393861888,1763045520785,-715.274392,0.00044931,120]
[393861889,1763045520796,-715.274392,0.00044931,120]
[393861890,1763045520806,-630.0,0.00044931,120]
[393861891,1763045520816,-500.0,0.00044931,120]
[393861892,1763045520826,-500.0,0.00044931,120]
[393861893,1763045520837,-500.0,0.00044931,120]
[393861894,1763045520847,-500.0,0.00044931,120]
[393861895,1763045520863,-500.0,0.00044931,120]
[393861896,1763045520873,-500.0,0.00044931,120]
[393861897,1763045520883,-500.0,0.00044931,120]
[393861898,1763045520893,-1748.23,0.00044931,120]
[393861899,1763045520903,-500.0,0.00044931,120]
[393861900,1763045520912,-500.0,0.00044931,120]
[393861901,1763045520922,-871.35,0.00044931,120]
[393861902,1763045520932,-500.0,0.00044931,120]
[393861903,1763045520942,-854.46,0.00044931,120]
[393861904,1763045520953,-635.12437629,0.00044931,120]
[393861905,1763045520963,-500.0,0.00044931,120]
[393861906,1763045520973,-591.42,0.00044931,120]
[393861907,1763045520982,-614.87,0.00044931,120]
[393861908,1763045520993,-500.0,0.00044931,120]
[393861909,1763045521002,-246.75501755,0.00044931,120]
[393861910,1763045521011,-500.0,0.00044931,120]
[393861911,1763045521021,-500.0,0.00044931,120]
[393861912,1763045521031,-500.0,0.00044931,120]
[393861913,1763045521041,-817.21,0.00044931,120]
[393861914,1763045521051,-500.0,0.00044931,120]
[393861915,1763045521060,-500.0,0.00044931,120]
[393861916,1763045521070,-500.0,0.00044931,120]
[393861917,1763045521080,-699.0,0.00044931,120]
[393861918,1763045521090,-500.0,0.00044931,120]
[393861919,1763045521105,-585.98,0.00044931,120]
[393861920,1763045521117,-500.0,0.00044931,120]
[393861921,1763045521127,-1500.0,0.00044968,10]
[393861922,1763045521137,-191.1935952,0.00044982,30]
[393861923,1763045521147,-382.3871904,0.00044982,30]
[393861924,1763045521160,-395.0990739,0.00044982,30]
[393861925,1763045521171,-395.0990739,0.00044982,30]
[393861926,1763045521181,-395.0990739,0.00044982,30]
[393861927,1763045521191,-1000.0,0.00045,120]
[393861928,1763045521202,-395.0990739,0.00045001,30]
[393861929,1763045521213,-395.0990739,0.00045001,30]
[393861930,1763045521225,-157.283892,0.00045098,90]
[393861931,1763045521237,-600.0,0.0004512,2]
[393861932,1763045521252,-571.44,0.00045205,120]
[393861933,1763045521266,-500.0,0.00045205,120]
[393861934,1763045521277,-500.0,0.00045205,120]
[393861935,1763045521288,-544.73,0.00045205,120]
[393861936,1763045521300,-500.0,0.00045205,120]
[393861937,1763045521312,-333.06770838,0.00045205,120]
[393861938,1763045521322,-500.0,0.00045205,120]
[393861939,1763045521333,-500.0,0.00045205,120]
[393861940,1763045521344,-500.0,0.00045205,120]
[393861941,1763045521364,-1000.0,0.00045205,2]
[393861942,1763045521376,-608.84,0.00045205,120]
[393861943,1763045521387,-500.0,0.00045205,120]
[393861944,1763045521398,-500.0,0.00045205,120]
[393861945,1763045521408,-500.0,0.00045205,120]
[393861946,1763045521419,-500.0,0.00045205,120]
[393861947,1763045521432,-311.97477288,0.00045205,120]
[393861948,1763045521442,-565.99,0.00045205,120]
[393861949,1763045521452,-155.932723,0.00045205,120]
[393861950,1763045521463,-500.0,0.00045205,120]
[393861951,1763045521474,-500.0,0.00045205,120]
[393861952,1763045521485,-500.0,0.00045205,120]
[393861953,1763045521495,-500.0,0.00045205,120]
[393861954,1763045521507,-500.0,0.00045205,120]
[393861955,1763045521519,-500.0,0.00045205,120]
[393861956,1763045521530,-500.0,0.00045205,120]
[393861957,1763045521540,-200.0,0.00045205,120]
[393861958,1763045521550,-500.0,0.00045205,120]
[393861959,1763045521561,-500.0,0.00045205,120]
[393861960,1763045521573,-534.11520081,0.00045205,120]
[393861961,1763045521583,-1000.0,0.00045205,120]
[393861962,1763045521594,-500.0,0.00045205,120]
[393861963,1763045521611,-500.0,0.00045205,120]
[393861964,1763045521622,-500.0,0.00045205,120]
[393861965,1763045521633,-732.35,0.00045205,120]
[393861966,1763045521643,-500.0,0.00045205,120]
[393861967,1763045521654,-500.0,0.00045205,120]
[393861968,1763045521665,-500.0,0.00045205,120]
[393861969,1763045521675,-500.0,0.00045205,120]
[393861970,1763045521685,-570.02,0.00045205,120]
[393861971,1763045521695,-502.75,0.00045205,120]
[393861972,1763045521706,-500.0,0.00045205,120]
[393861973,1763045521716,-500.0,0.00045205,120]
[393861974,1763045521726,-500.0,0.00045205,120]
[393861975,1763045521736,-579.52681657,0.00045205,120]
[393861976,1763045521746,-585.51,0.00045205,120]
[393861977,1763045521756,-500.0,0.00045205,120]
[393861978,1763045521766,-500.0,0.00045205,120]
[393861979,1763045521776,-500.0,0.00045205,120]
[393861980,1763045521785,-1000.0,0.00045205,2]
[393861981,1763045521795,-500.0,0.00045205,120]
[393861982,1763045521805,-500.0,0.00045205,120]
[393861983,1763045521814,-598.45988122,0.00045205,120]
[393861984,1763045521823,-500.0,0.00045205,120]
[393861985,1763045521832,-500.0,0.00045205,120]
[393861986,1763045521843,-500.0,0.00045205,120]
[393861987,1763045521859,-500.0,0.00045205,120]
[393861988,1763045521869,-500.0,0.00045205,120]
[393861989,1763045521878,-514.82,0.00045205,120]
[393861990,1763045521887,-500.0,0.00045205,120]
[393861991,1763045521897,-500.0,0.00045205,120]
[393861992,1763045521906,-500.0,0.00045205,120]
[393861993,1763045521915,-500.0,0.00045205,120]
[393861994,1763045521925,-500.0,0.00045205,120]
[393861995,1763045521935,-577.09,0.00045205,120]
[393861996,1763045521944,-834.01,0.00045205,120]
[393861997,1763045521954,-500.0,0.00045205,120]
[393861998,1763045521964,-969.65,0.00045205,120]
[393861999,1763045521974,-1066.87,0.00045205,7]
[393862000,1763045521984,-1264.73,0.00045205,30]
[393862001,1763045521994,-500.0,0.00045205,120]
[393862002,1763045522004,-787.85,0.00045205,120]
[393862003,1763045522014,-552.73,0.00045205,120]
[393862004,1763045522024,-2599.22,0.00045205,2]
[393862005,1763045522034,-500.0,0.00045205,120]
[393862006,1763045522046,-500.0,0.00045205,120]
[393862007,1763045522057,-736.82,0.00045205,120]
[393862008,1763045522067,-500.0,0.00045205,120]
[393862009,1763045522078,-512.47,0.00045205,120]
[393862010,1763045522088,-500.0,0.00045205,120]
[393862011,1763045522098,-500.0,0.00045205,120]
[393862012,1763045522116,-534.45,0.00045205,120]
[393862013,1763045522127,-500.0,0.00045205,120]
[393862014,1763045522138,-500.0,0.00045205,120]
[393862015,1763045522149,-500.0,0.00045205,120]
[393862016,1763045522160,-500.0,0.00045205,120]
[393862017,1763045522171,-500.0,0.00045205,120]
[393862018,1763045522182,-500.0,0.00045205,120]
[393862019,1763045522192,-539.92,0.00045205,120]
[393862020,1763045522203,-500.0,0.00045205,120]
[393862021,1763045522214,-500.0,0.00045205,2]
[393862022,1763045522224,-500.0,0.00045205,120]
[393862023,1763045522234,-500.0,0.00045205,120]
[393862024,1763045522245,-500.0,0.00045205,120]
[393862025,1763045522261,-500.0,0.00045205,120]
[393862026,1763045522271,-558.63,0.00045205,120]
[393862027,1763045522282,-500.0,0.00045205,120]
[393862028,1763045522291,-500.0,0.00045205,120]
[393862029,1763045522303,-500.0,0.00045205,120]
[393862030,1763045522313,-500.0,0.00045205,120]
[393862031,1763045522324,-500.0,0.00045205,120]
[393862032,1763045522334,-500.0,0.00045205,120]
[393862033,1763045522345,-500.0,0.00045205,120]
[393862034,1763045522365,-500.0,0.00045205,120]
[393862035,1763045522376,-500.0,0.00045205,120]
[393862036,1763045522388,-500.0,0.00045205,120]
[393862037,1763045522399,-633.9,0.00045205,120]